[Event "NJSK 2018 Jeugd C"]
[Site "Assen, Netherlands"]
[Date "2018.05.02"]
[Round "5.9"]
[White "Roebers, Eline"]
[Black "Yeh, Timo"]
[Result "1/2-1/2"]
[TimeControl "40/90m+30sec/move"]
[WhiteElo "1961"]
[BlackElo "1729"]

1. e4 {[%clk 01:30:57]} {[%emt 00:00:02]} e5 {[%clk 01:30:56]} {[%emt
00:00:05]} 2. Nc3 {[%clk 01:31:20]} {[%emt 00:00:07]} Nf6 {[%clk 01:31:22]}
{[%emt 00:00:04]} 3. f4 {[%clk 01:31:45]} {[%emt 00:00:05]} d5 {[%clk
01:31:49]} {[%emt 00:00:04]} 4. fxe5 {[%clk 01:32:11]} {[%emt 00:00:04]} Nxe4
{[%clk 01:32:12]} {[%emt 00:00:07]} 5. Qf3 {[%clk 01:32:37]} {[%emt 00:00:04]}
Nxc3 {[%clk 01:32:37]} {[%emt 00:00:05]} 6. bxc3 {[%clk 01:33:01]} {[%emt
00:00:06]} c5 {[%clk 01:32:28]} {[%emt 00:00:39]} 7. Ne2 {[%clk 01:31:48]}
{[%emt 00:01:42]} Nc6 {[%clk 01:32:43]} {[%emt 00:00:16]} 8. Nf4 {[%clk
01:25:30]} {[%emt 00:06:48]} Nxe5 {[%clk 01:25:49]} {[%emt 00:07:24]} 9. Qxd5
{[%clk 01:24:10]} {[%emt 00:01:49]} Qxd5 {[%clk 01:26:09]} {[%emt 00:00:10]} 10.
Nxd5 {[%clk 01:24:35]} {[%emt 00:00:05]} Bd6 {[%clk 01:26:20]} {[%emt
00:00:20]} 11. d4 {[%clk 01:19:35]} {[%emt 00:05:30]} cxd4 {[%clk 01:26:31]}
{[%emt 00:00:19]} 12. cxd4 {[%clk 01:19:58]} {[%emt 00:00:07]} Nc6 {[%clk
01:26:53]} {[%emt 00:00:08]} 13. c3 {[%clk 01:17:08]} {[%emt 00:03:20]} O-O
{[%clk 01:27:02]} {[%emt 00:00:21]} 14. Bd3 {[%clk 01:16:32]} {[%emt 00:01:05]}
Re8+ {[%clk 01:27:04]} {[%emt 00:00:28]} 15. Kf2 {[%clk 01:15:54]} {[%emt
00:01:08]} Ne7 {[%clk 01:12:04]} {[%emt 00:15:30]} 16. Re1 {[%clk 01:10:54]}
{[%emt 00:05:30]} Be6 {[%clk 01:10:49]} {[%emt 00:01:45]} 17. Nxe7+ {[%clk
01:06:27]} {[%emt 00:04:56]} Bxe7 {[%clk 01:08:11]} {[%emt 00:03:09]} 18. Be4
{[%clk 01:00:46]} {[%emt 00:06:11]} Rac8 {[%clk 01:05:35]} {[%emt 00:03:07]} 19.
Bd2 {[%clk 00:56:47]} {[%emt 00:04:29]} b6 {[%clk 01:05:07]} {[%emt 00:00:58]}
20. g3 {[%clk 00:49:50]} {[%emt 00:07:27]} Red8 {[%clk 01:03:03]} {[%emt
00:02:34]} 21. a4 {[%clk 00:41:12]} {[%emt 00:09:08]} h6 {[%clk 01:00:27]}
{[%emt 00:03:06]} 22. a5 {[%clk 00:34:30]} {[%emt 00:07:13]} b5 {[%clk
00:59:55]} {[%emt 00:01:01]} 23. Rab1 {[%clk 00:33:52]} {[%emt 00:01:07]} b4
{[%clk 00:57:51]} {[%emt 00:02:34]} 24. cxb4 {[%clk 00:23:44]} {[%emt
00:10:39]} Rxd4 {[%clk 00:58:07]} {[%emt 00:00:13]} 25. Rb2 {[%clk 00:22:44]}
{[%emt 00:01:29]} Rcc4 {[%clk 00:57:10]} {[%emt 00:01:28]} 26. Bf3 {[%clk
00:19:09]} {[%emt 00:04:04]} Bxb4 {[%clk 00:56:30]} {[%emt 00:01:11]} 27. Bxb4
{[%clk 00:18:37]} {[%emt 00:01:02]} Rxb4 {[%clk 00:56:58]} {[%emt 00:00:02]} 28.
Rxb4 {[%clk 00:16:27]} {[%emt 00:02:40]} Rxb4 {[%clk 00:57:06]} {[%emt
00:00:23]} 29. Re5 {[%clk 00:15:41]} {[%emt 00:01:15]} Rb2+ {[%clk 00:50:13]}
{[%emt 00:07:24]} 30. Kg1 {[%clk 00:10:55]} {[%emt 00:05:14]} g6 {[%clk
00:46:31]} {[%emt 00:04:12]} 31. Rc5 {[%clk 00:10:08]} {[%emt 00:01:14]} Ra2
{[%clk 00:46:16]} {[%emt 00:00:49]} 32. Bd5 {[%clk 00:08:40]} {[%emt 00:01:58]}
Bxd5 {[%clk 00:44:53]} {[%emt 00:01:53]} 33. Rxd5 {[%clk 00:09:06]} {[%emt
00:00:05]} Kf8 {[%clk 00:45:17]} {[%emt 00:00:06]} 34. Rb5 {[%clk 00:08:25]}
{[%emt 00:01:08]} a6 {[%clk 00:45:24]} {[%emt 00:00:25]} 35. Re5 {[%clk
00:06:30]} {[%emt 00:02:25]} f6 {[%clk 00:45:21]} {[%emt 00:00:33]} 36. Re6
{[%clk 00:06:29]} {[%emt 00:00:31]} Rxa5 {[%clk 00:45:45]} {[%emt 00:00:06]} 37.
Rxf6+ {[%clk 00:06:55]} {[%emt 00:00:04]} Kg7 {[%clk 00:46:08]} {[%emt
00:00:07]} 38. Rb6 {[%clk 00:07:12]} {[%emt 00:00:14]} Ra2 {[%clk 00:46:30]}
{[%emt 00:00:08]} 39. Rc6 {[%clk 00:06:59]} {[%emt 00:00:41]} a5 {[%clk
00:46:49]} {[%emt 00:00:12]} 40. Ra6 {[%clk 00:06:59]} {[%emt 00:00:30]} h5
{[%clk 00:42:03]} {[%emt 00:05:17]} 41. h4 {[%clk 00:05:48]} {[%emt 00:01:40]}
a4 {[%clk 00:42:20]} {[%emt 00:00:14]} 42. Kf1 {[%clk 00:06:03]} {[%emt
00:00:13]} Kf7 {[%clk 00:42:35]} {[%emt 00:00:16]} 43. Ke1 {[%clk 00:05:43]}
{[%emt 00:00:49]} Rg2 {[%clk 00:42:44]} {[%emt 00:00:22]} 44. Rxa4 {[%clk
00:06:01]} {[%emt 00:00:12]} Rxg3 {[%clk 00:43:10]} {[%emt 00:00:04]} 45. Kf2
{[%clk 00:06:20]} {[%emt 00:00:10]} Rb3 {[%clk 00:41:10]} {[%emt 00:02:32]} 46.
Kg2 {[%clk 00:06:11]} {[%emt 00:00:38]} Kf6 {[%clk 00:41:06]} {[%emt 00:00:34]}
47. Ra5 {[%clk 00:06:07]} {[%emt 00:00:33]} Rb4 {[%clk 00:41:09]} {[%emt
00:00:28]} 48. Kg3 {[%clk 00:05:50]} {[%emt 00:00:46]} Re4 {[%clk 00:41:14]}
{[%emt 00:00:26]} 49. Rb5 {[%clk 00:03:41]} {[%emt 00:02:39]} Re5 {[%clk
00:41:14]} {[%emt 00:00:30]} 50. Rb4 {[%clk 00:03:55]} {[%emt 00:00:16]} Rc5
{[%clk 00:39:27]} {[%emt 00:02:17]} 51. Kf4 {[%clk 00:02:45]} {[%emt 00:01:40]}
Rf5+ {[%clk 00:39:35]} {[%emt 00:00:22]} 52. Ke3 {[%clk 00:01:46]} {[%emt
00:01:29]} Ra5 {[%clk 00:37:47]} {[%emt 00:02:18]} 53. Kf4 {[%clk 00:01:35]}
{[%emt 00:00:40]} Rf5+ {[%clk 00:36:50]} {[%emt 00:01:28]} 54. Ke3 {[%clk
00:02:00]} {[%emt 00:00:06]} g5 {[%clk 00:36:48]} {[%emt 00:00:32]} 55. Rb6+
{[%clk 00:02:05]} {[%emt 00:00:25]} Kg7 {[%clk 00:36:57]} {[%emt 00:00:19]} 56.
Rb7+ {[%clk 00:01:45]} {[%emt 00:00:51]} Kf6 {[%clk 00:37:13]} {[%emt
00:00:13]} 57. Rb6+ {[%clk 00:02:09]} {[%emt 00:00:06]} Kg7 {[%clk 00:36:58]}
{[%emt 00:00:46]} 1/2-1/2

[Event "NJSK 2018 Jeugd C"]
[Site "Assen, Netherlands"]
[Date "2018.05.02"]
[Round "5.10"]
[White "Torensma, Christian"]
[Black "Labruyere, Roger"]
[Result "0-1"]
[TimeControl "40/90m+30sec/move"]
[WhiteElo "1455"]
[BlackElo "1665"]

1. e4 {[%clk 01:30:59]} c6 {[%clk 01:29:33]} {[%emt 00:01:28]} 2. d4 {[%clk
01:31:25]} {[%emt 00:00:04]} d5 {[%clk 01:29:53]} {[%emt 00:00:10]} 3. Nc3
{[%clk 01:31:48]} {[%emt 00:00:07]} dxe4 {[%clk 01:30:03]} {[%emt 00:00:20]} 4.
Nxe4 {[%clk 01:32:11]} {[%emt 00:00:06]} Bf5 {[%clk 01:30:32]} {[%emt
00:00:01]} 5. Ng3 {[%clk 01:32:31]} {[%emt 00:00:10]} Bg6 {[%clk 01:30:44]}
{[%emt 00:00:19]} 6. h4 {[%clk 01:32:53]} {[%emt 00:00:08]} h6 {[%clk
01:31:10]} {[%emt 00:00:05]} 7. Nf3 {[%clk 01:33:19]} {[%emt 00:00:03]} Nd7
{[%clk 01:31:36]} {[%emt 00:00:05]} 8. h5 {[%clk 01:33:42]} {[%emt 00:00:06]}
Bh7 {[%clk 01:32:01]} {[%emt 00:00:04]} 9. Bd3 {[%clk 01:34:07]} {[%emt
00:00:05]} Bxd3 {[%clk 01:32:29]} {[%emt 00:00:02]} 10. Qxd3 {[%clk 01:34:30]}
{[%emt 00:00:08]} e6 {[%clk 01:32:56]} {[%emt 00:00:03]} 11. Bf4 {[%clk
01:34:47]} {[%emt 00:00:13]} Qa5+ {[%clk 01:33:23]} {[%emt 00:00:03]} 12. Bd2
{[%clk 01:35:10]} {[%emt 00:00:07]} Qc7 {[%clk 01:33:50]} {[%emt 00:00:04]} 13.
O-O-O {[%clk 01:35:29]} {[%emt 00:00:10]} O-O-O {[%clk 01:34:13]} {[%emt
00:00:07]} 14. Ne4 {[%clk 01:34:45]} {[%emt 00:01:13]} Ngf6 {[%clk 01:34:19]}
{[%emt 00:00:24]} 15. Nxf6 {[%clk 01:33:52]} {[%emt 00:01:24]} Nxf6 {[%clk
01:34:46]} {[%emt 00:00:03]} 16. Qe2 {[%clk 01:32:01]} {[%emt 00:02:20]} Bd6
{[%clk 01:33:25]} {[%emt 00:01:51]} 17. Kb1 {[%clk 01:29:18]} {[%emt 00:03:13]}
Rhe8 {[%clk 01:33:21]} {[%emt 00:00:34]} 18. Ne5 {[%clk 01:25:27]} {[%emt
00:04:22]} Bxe5 {[%clk 01:32:57]} {[%emt 00:00:54]} 19. dxe5 {[%clk 01:25:20]}
{[%emt 00:00:37]} Nd5 {[%clk 01:33:16]} {[%emt 00:00:11]} 20. c4 {[%clk
01:24:16]} {[%emt 00:01:34]} Ne7 {[%clk 01:28:09]} {[%emt 00:05:37]} 21. g4
{[%clk 01:23:00]} {[%emt 00:01:46]} c5 {[%clk 01:27:13]} {[%emt 00:01:25]} 22.
Bc3 {[%clk 01:21:49]} {[%emt 00:01:41]} Nc6 {[%clk 01:27:35]} {[%emt 00:00:08]}
23. f4 {[%clk 01:17:13]} {[%emt 00:05:06]} Nd4 {[%clk 01:27:26]} {[%emt
00:00:40]} 24. Qe3 {[%clk 01:12:47]} {[%emt 00:04:56]} Qc6 {[%clk 01:27:04]}
{[%emt 00:00:51]} 25. Rhf1 {[%clk 00:56:24]} {[%emt 00:16:53]} Qg2 {[%clk
01:22:18]} {[%emt 00:05:16]} 26. Bxd4 {[%clk 00:47:09]} {[%emt 00:09:46]} cxd4
{[%clk 01:22:29]} {[%emt 00:00:18]} 27. Qf3 {[%clk 00:46:10]} {[%emt 00:01:29]}
Qxf3 {[%clk 01:22:16]} {[%emt 00:00:43]} 28. Rxf3 {[%clk 00:46:36]} {[%emt
00:00:04]} Re7 {[%clk 01:21:31]} {[%emt 00:01:15]} 29. Rfd3 {[%clk 00:45:32]}
{[%emt 00:01:35]} Red7 {[%clk 01:20:53]} {[%emt 00:01:08]} 30. b4 {[%clk
00:42:51]} {[%emt 00:03:10]} a6 {[%emt 00:05:12]} 31. a4 {[%clk 00:38:38]} Kc7
{[%clk 01:20:05]} {[%emt 00:01:19]} 32. Rc1 {[%clk 00:32:32]} {[%emt 00:06:37]}
Kc6 {[%clk 01:18:47]} {[%emt 00:01:48]} 33. a5 {[%clk 00:31:18]} {[%emt
00:01:44]} Rb8 {[%clk 01:16:18]} {[%emt 00:02:59]} 34. Rcd1 {[%clk 00:27:35]}
{[%emt 00:04:12]} b6 {[%clk 01:16:18]} {[%emt 00:00:31]} 35. Rxd4 {[%clk
00:27:06]} {[%emt 00:00:59]} Rxd4 {[%clk 01:16:39]} {[%emt 00:00:08]} 36. Rxd4
{[%clk 00:27:35]} bxa5 {[%emt 00:00:14]} 37. Rd6+ {[%clk 00:27:21]} {[%emt
00:00:38]} Kc7 {[%clk 01:17:32]} {[%emt 00:00:01]} 38. Rxa6 {[%clk 00:25:05]}
{[%emt 00:02:46]} Rxb4+ {[%clk 01:17:50]} {[%emt 00:00:11]} 39. Ka2 {[%clk
00:25:23]} {[%emt 00:00:13]} Kb7 {[%clk 01:18:17]} {[%emt 00:00:03]} 40. Rd6
{[%clk 00:23:12]} {[%emt 00:02:40]} Rxc4 {[%clk 01:18:40]} {[%emt 00:00:07]} 41.
Rd7+ {[%clk 00:23:31]} {[%emt 00:00:11]} Rc7 {[%clk 01:19:02]} {[%emt
00:00:08]} 42. Rd4 {[%clk 00:23:36]} {[%emt 00:00:25]} Kc8 {[%clk 01:16:06]}
{[%emt 00:03:27]} 43. Kb2 {[%clk 00:22:59]} {[%emt 00:01:07]} Rb7+ {[%clk
01:13:17]} {[%emt 00:03:18]} 44. Ka3 {[%clk 00:22:18]} {[%emt 00:01:12]} Kc7
{[%clk 01:10:42]} {[%emt 00:03:04]} 45. g5 {[%clk 00:18:08]} {[%emt 00:04:40]}
Rb1 {[%clk 00:51:30]} {[%emt 00:19:42]} 46. Rd6 {[%clk 00:12:44]} {[%emt
00:05:55]} Rg1 {[%clk 00:51:02]} {[%emt 00:00:57]} 47. g6 {[%clk 00:11:07]}
{[%emt 00:02:07]} fxg6 {[%clk 00:48:46]} {[%emt 00:02:46]} 48. hxg6 {[%clk
00:11:08]} {[%emt 00:00:29]} Rxg6 {[%clk 00:48:45]} {[%emt 00:00:31]} 49. f5
{[%clk 00:11:28]} {[%emt 00:00:10]} Rg3+ {[%clk 00:49:12]} {[%emt 00:00:03]} 50.
Ka4 {[%clk 00:11:42]} {[%emt 00:00:17]} exf5 {[%clk 00:49:37]} {[%emt
00:00:04]} 51. Kxa5 {[%clk 00:11:22]} {[%emt 00:00:51]} f4 {[%clk 00:48:48]}
{[%emt 00:01:18]} 52. Rd2 {[%clk 00:10:58]} {[%emt 00:00:53]} Re3 {[%clk
00:49:10]} {[%emt 00:00:08]} 0-1

[Event "NJSK 2018 Jeugd C"]
[Site "Assen, Netherlands"]
[Date "2018.05.02"]
[Round "5.11"]
[White "Franke, Daniel"]
[Black "Van der Schaaf, Tristan"]
[Result "0-1"]
[TimeControl "40/90m+30sec/move"]
[WhiteElo "1298"]
[BlackElo "1647"]

1. d4 {[%clk 01:30:59]} {[%emt 00:00:01]} Nf6 {[%clk 01:30:53]} {[%emt
00:00:07]} 2. c4 {[%clk 01:31:25]} {[%emt 00:00:04]} e6 {[%clk 01:31:20]}
{[%emt 00:00:03]} 3. Nf3 {[%clk 01:31:51]} {[%emt 00:00:04]} b6 {[%clk
01:31:42]} {[%emt 00:00:07]} 4. Nc3 {[%clk 01:32:11]} {[%emt 00:00:11]} Bb7
{[%clk 01:32:07]} {[%emt 00:00:06]} 5. e3 {[%clk 01:32:28]} {[%emt 00:00:12]}
Be7 {[%clk 01:32:07]} {[%emt 00:00:30]} 6. Bd3 {[%clk 01:32:51]} {[%emt
00:00:07]} d5 {[%clk 01:32:04]} {[%emt 00:00:33]} 7. O-O {[%clk 01:32:19]}
{[%emt 00:01:02]} O-O {[%clk 01:32:27]} {[%emt 00:00:07]} 8. Qc2 {[%clk
01:32:03]} {[%emt 00:00:46]} Nbd7 {[%clk 01:32:02]} {[%emt 00:00:55]} 9. e4
{[%clk 01:31:28]} {[%emt 00:01:05]} dxe4 {[%clk 01:31:05]} {[%emt 00:01:26]} 10.
Nxe4 {[%clk 01:31:27]} {[%emt 00:00:32]} Nxe4 {[%clk 01:31:20]} {[%emt
00:00:15]} 11. Bxe4 {[%clk 01:31:49]} {[%emt 00:00:08]} Bxe4 {[%clk 01:31:46]}
{[%emt 00:00:04]} 12. Qxe4 {[%clk 01:32:10]} {[%emt 00:00:09]} c5 {[%clk
01:30:35]} {[%emt 00:01:41]} 13. Re1 {[%clk 01:30:36]} {[%emt 00:02:04]} Nf6
{[%clk 01:29:54]} {[%emt 00:01:10]} 14. Qe3 {[%clk 01:28:49]} {[%emt 00:02:17]}
Re8 {[%clk 01:27:19]} {[%emt 00:03:05]} 15. b3 {[%clk 01:27:30]} {[%emt
00:01:50]} Qc7 {[%clk 01:24:37]} {[%emt 00:03:10]} 16. h3 {[%clk 01:27:00]}
{[%emt 00:01:02]} Rad8 {[%clk 01:24:27]} {[%emt 00:00:39]} 17. Bb2 {[%clk
01:26:58]} {[%emt 00:00:32]} Nd7 {[%clk 01:11:25]} {[%emt 00:13:32]} 18. Qe2
{[%clk 01:15:23]} {[%emt 00:12:06]} Bf6 {[%clk 00:52:00]} {[%emt 00:19:54]} 19.
dxc5 {[%clk 01:12:38]} {[%emt 00:03:16]} Qxc5 {[%clk 00:50:48]} {[%emt
00:01:42]} 20. Rad1 {[%clk 01:08:12]} {[%emt 00:04:57]} Bxb2 {[%clk 00:49:08]}
{[%emt 00:02:08]} 21. Qxb2 {[%clk 01:08:30]} {[%emt 00:00:13]} Qc7 {[%clk
00:48:11]} {[%emt 00:01:27]} 22. Nd4 {[%clk 01:03:07]} {[%emt 00:05:53]} Nc5
{[%clk 00:43:34]} {[%emt 00:05:06]} 23. Rd2 {[%clk 00:58:15]} {[%emt 00:05:23]}
Rd7 {[%clk 00:28:38]} {[%emt 00:15:26]} 24. Red1 {[%clk 00:42:33]} {[%emt
00:16:11]} Red8 {[%clk 00:25:13]} {[%emt 00:03:55]} 25. Nb5 {[%clk 00:40:55]}
{[%emt 00:02:08]} Qb7 {[%clk 00:22:01]} {[%emt 00:03:42]} 26. Rxd7 {[%clk
00:40:34]} {[%emt 00:00:52]} Rxd7 {[%clk 00:22:10]} {[%emt 00:00:21]} 27. Rxd7
{[%clk 00:40:57]} {[%emt 00:00:07]} Qxd7 {[%clk 00:22:04]} {[%emt 00:00:35]} 28.
Qe5 {[%clk 00:40:56]} {[%emt 00:00:30]} Qb7 {[%clk 00:19:20]} {[%emt 00:03:15]}
29. Qc7 {[%clk 00:40:20]} {[%emt 00:01:04]} Qxc7 {[%clk 00:19:21]} {[%emt
00:00:31]} 30. Nxc7 {[%clk 00:40:41]} {[%emt 00:00:10]} a5 {[%clk 00:18:50]}
{[%emt 00:01:01]} 31. Kf1 {[%clk 00:39:01]} {[%emt 00:02:09]} Kf8 {[%clk
00:19:01]} {[%emt 00:00:20]} 32. Na8 {[%clk 00:38:49]} {[%emt 00:00:42]} Nd7
{[%clk 00:19:22]} {[%emt 00:00:09]} 33. Nc7 {[%clk 00:39:11]} {[%emt 00:00:07]}
Ke7 {[%clk 00:19:38]} {[%emt 00:00:15]} 34. Ke2 {[%clk 00:37:58]} {[%emt
00:01:44]} Nc5 {[%clk 00:19:14]} {[%emt 00:00:53]} 35. Na8 {[%clk 00:38:08]}
{[%emt 00:00:19]} Nd7 {[%clk 00:19:41]} {[%emt 00:00:03]} 36. Nc7 {[%clk
00:38:22]} {[%emt 00:00:16]} Kd8 {[%clk 00:19:55]} {[%emt 00:00:16]} 37. Nb5
{[%clk 00:38:39]} {[%emt 00:00:12]} Nc5 {[%clk 00:20:10]} {[%emt 00:00:17]} 38.
Nd6 {[%clk 00:28:41]} {[%emt 00:10:28]} f6 {[%clk 00:20:21]} {[%emt 00:00:19]}
39. Ke3 {[%clk 00:28:13]} {[%emt 00:00:57]} Kd7 {[%clk 00:20:41]} {[%emt
00:00:10]} 40. Nb5 {[%clk 00:28:34]} {[%emt 00:00:10]} Kc6 {[%clk 00:18:41]}
{[%emt 00:02:30]} 41. Nd4+ {[%clk 00:28:36]} {[%emt 00:00:27]} Kd6 {[%clk
00:18:37]} {[%emt 00:00:34]} 42. Nb5+ {[%clk 00:28:51]} {[%emt 00:00:14]} Kd7
{[%clk 00:15:14]} {[%emt 00:03:54]} 43. g4 {[%clk 00:27:32]} {[%emt 00:01:49]}
g5 {[%clk 00:14:50]} {[%emt 00:00:55]} 44. f3 {[%clk 00:27:44]} {[%emt
00:00:18]} Kc6 {[%clk 00:08:30]} {[%emt 00:06:50]} 45. Na7+ {[%clk 00:27:16]}
{[%emt 00:00:58]} Kd6 {[%clk 00:08:52]} {[%emt 00:00:07]} 46. Nc8+ {[%clk
00:27:25]} {[%emt 00:00:18]} Kc7 {[%clk 00:08:08]} {[%emt 00:01:17]} 47. Na7
{[%clk 00:27:34]} {[%emt 00:00:19]} Nd7 {[%clk 00:07:09]} {[%emt 00:01:31]} 48.
Nb5+ {[%clk 00:27:03]} {[%emt 00:01:01]} Kc6 {[%clk 00:07:06]} {[%emt
00:00:34]} 49. Nd4+ {[%clk 00:21:43]} {[%emt 00:05:48]} Kd6 {[%clk 00:06:09]}
{[%emt 00:01:29]} 50. Nb5+ {[%clk 00:20:23]} {[%emt 00:01:50]} Ke5 {[%clk
00:05:01]} {[%emt 00:01:38]} 51. Nd4 {[%clk 00:18:53]} {[%emt 00:01:58]} f5
{[%clk 00:04:05]} {[%emt 00:01:27]} 52. Nc6+ {[%clk 00:15:04]} {[%emt
00:04:19]} Kd6 {[%clk 00:02:54]} {[%emt 00:01:41]} 53. Nd8 {[%clk 00:15:10]}
{[%emt 00:00:24]} Ne5 {[%clk 00:01:17]} {[%emt 00:02:09]} 54. gxf5 {[%clk
00:12:36]} {[%emt 00:03:03]} exf5 {[%clk 00:01:45]} {[%emt 00:00:02]} 55. f4
{[%clk 00:12:33]} {[%emt 00:00:32]} Kd7 {[%clk 00:01:13]} {[%emt 00:01:03]} 56.
Nb7 {[%clk 00:10:43]} {[%emt 00:02:20]} Kc7 {[%clk 00:01:04]} {[%emt 00:00:38]}
57. fxe5 {[%clk 00:06:03]} {[%emt 00:05:10]} Kxb7 {[%clk 00:01:24]} {[%emt
00:00:11]} 58. Kd4 {[%clk 00:06:31]} {[%emt 00:00:02]} Kc6 {[%clk 00:01:45]}
{[%emt 00:00:09]} 59. a3 {[%clk 00:06:49]} {[%emt 00:00:12]} g4 {[%clk
00:01:53]} {[%emt 00:00:21]} 60. hxg4 {[%clk 00:06:41]} {[%emt 00:00:38]} fxg4
{[%clk 00:02:18]} {[%emt 00:00:05]} 61. b4 {[%clk 00:06:45]} {[%emt 00:00:26]}
axb4 {[%clk 00:02:37]} {[%emt 00:00:11]} 62. axb4 {[%clk 00:07:11]} {[%emt
00:00:04]} h5 {[%clk 00:02:59]} {[%emt 00:00:09]} 63. b5+ {[%clk 00:07:29]}
{[%emt 00:00:12]} Kd7 {[%clk 00:03:10]} {[%emt 00:00:20]} 64. Kd5 {[%clk
00:07:53]} {[%emt 00:00:05]} g3 {[%clk 00:03:18]} {[%emt 00:00:21]} 65. e6+
{[%clk 00:08:06]} {[%emt 00:00:17]} Ke7 {[%clk 00:03:47]} {[%emt 00:00:02]} 66.
Kc6 {[%clk 00:08:08]} {[%emt 00:00:27]} g2 {[%clk 00:04:10]} {[%emt 00:00:07]}
67. Kxb6 {[%clk 00:08:36]} {[%emt 00:00:03]} g1=Q+ {[%emt 00:00:09]} 68. Ka5
{[%clk 00:09:04]} Qa1+ {[%clk 00:04:39]} {[%emt 00:00:22]} 69. Kb6 {[%clk
00:09:28]} {[%emt 00:00:06]} Kxe6 {[%clk 00:04:44]} {[%emt 00:00:25]} 70. c5
{[%clk 00:09:49]} {[%emt 00:00:10]} Qd4 {[%clk 00:05:07]} {[%emt 00:00:06]} 71.
Kc6 {[%clk 00:10:09]} {[%emt 00:00:10]} Qd7+ {[%clk 00:05:23]} {[%emt
00:00:14]} 72. Kb6 {[%clk 00:10:21]} {[%emt 00:00:19]} Qc8 {[%clk 00:05:25]}
{[%emt 00:00:28]} 73. Ka7 {[%clk 00:10:03]} {[%emt 00:00:48]} Qxc5+ {[%clk
00:05:41]} {[%emt 00:00:13]} 74. b6 {[%clk 00:10:26]} {[%emt 00:00:07]} Qxb6+
{[%clk 00:06:02]} {[%emt 00:00:09]} 0-1